[Event "December 19 Late 2023"]
[Site "https://www.chess.com"]
[Date "2023.12.19"]
[Round "3"]
[White "Semenenko, Dmytry"]
[Black "Pulpan, Jakub"]
[Result "0-1"]
[Board "99"]
[TimeControl "180+1"]
[WhiteFideId "14118645"]
[BlackFideId "302759"]
[WhiteElo "2113"]
[BlackElo "2501"]
[WhiteTeam "UKR"]
[BlackTeam "CZE"]
[WhiteClock "0:00:00"]
[BlackClock "0:00:16"]

1. Nf3 {[%clk 0:02:59]}  Nc6 {[%clk 0:02:43]} 2. d4 {[%clk 0:02:59]}  Nf6 {[%clk 0:02:38]} 3. d5 {[%clk 0:02:58]}  Nb8 {[%clk 0:02:37]} 4. c4 {[%clk 0:02:58]}  g6 {[%clk 0:02:35]} 5. Nc3 {[%clk 0:02:58]}  Bg7 {[%clk 0:02:35]} 6. e4 {[%clk 0:02:58]}  d6 {[%clk 0:02:36]} 7. Be2 {[%clk 0:02:57]}  O-O {[%clk 0:02:36]} 8. O-O {[%clk 0:02:56]}  c6 {[%clk 0:02:33]} 9. Be3 {[%clk 0:02:53]}  a6 {[%clk 0:02:33]} 10. Qd2 {[%clk 0:02:49]}  b5 {[%clk 0:02:33]} 11. dxc6 {[%clk 0:02:45]}  bxc4 {[%clk 0:02:31]} 12. Nd5 {[%clk 0:02:26]}  Nxc6 {[%clk 0:02:19]} 13. Nxf6+ {[%clk 0:02:13]}  Bxf6 {[%clk 0:02:18]} 14. Bxc4 {[%clk 0:02:13]}  Rb8 {[%clk 0:02:15]} 15. Rab1 {[%clk 0:02:10]}  Bg4 {[%clk 0:02:03]} 16. Bh6 {[%clk 0:01:59]}  Bxf3 {[%clk 0:01:57]} 17. gxf3 {[%clk 0:01:39]}  Bg7 {[%clk 0:01:57]} 18. Bg5 {[%clk 0:01:33]}  Qb6 {[%clk 0:01:42]} 19. Be3 {[%clk 0:01:18]}  Qb7 {[%clk 0:01:36]} 20. Rfc1 {[%clk 0:01:08]}  Ne5 {[%clk 0:01:27]} 21. Be2 {[%clk 0:01:07]}  f5 {[%clk 0:01:06]} 22. Qd5+ {[%clk 0:00:58]}  Qxd5 {[%clk 0:01:04]} 23. exd5 {[%clk 0:00:58]}  f4 {[%clk 0:01:05]} 24. Bd2 {[%clk 0:00:51]}  Rfc8 {[%clk 0:00:35]} 25. b3 {[%clk 0:00:37]}  Kf7 {[%clk 0:00:25]} 26. Kg2 {[%clk 0:00:33]}  g5 {[%clk 0:00:25]} 27. a4 {[%clk 0:00:28]}  Rxc1 {[%clk 0:00:24]} 28. Bxc1 {[%clk 0:00:27]}  Ra8 {[%clk 0:00:19]} 29. Bd2 {[%clk 0:00:25]}  Nd7 {[%clk 0:00:19]} 30. b4 {[%clk 0:00:21]}  Nb6 {[%clk 0:00:19]} 31. a5 {[%clk 0:00:16]}  Nxd5 {[%clk 0:00:19]} 32. Bc4 {[%clk 0:00:16]}  e6 {[%clk 0:00:19]} 33. Bxd5 {[%clk 0:00:15]}  exd5 {[%clk 0:00:19]} 34. b5 {[%clk 0:00:15]}  axb5 {[%clk 0:00:20]} 35. Rxb5 {[%clk 0:00:16]}  Ke6 {[%clk 0:00:20]} 36. Rb7 {[%clk 0:00:14]}  Bf6 {[%clk 0:00:16]} 37. Rxh7 {[%clk 0:00:14]}  d4 {[%clk 0:00:16]} 38. Rb7 {[%clk 0:00:13]}  Bd8 {[%clk 0:00:15]} 39. Rb5 {[%clk 0:00:12]}  d5 {[%clk 0:00:16]} 40. Kh3 {[%clk 0:00:10]}  Kd6 {[%clk 0:00:16]} 41. Kg4 {[%clk 0:00:10]}  Kc6 {[%clk 0:00:17]} 42. Rb4 {[%clk 0:00:09]}  Bxa5 {[%clk 0:00:15]} 43. Ra4 {[%clk 0:00:09]}  Kb5 {[%clk 0:00:15]} 44. Rxd4 {[%clk 0:00:09]}  Kc5 {[%clk 0:00:13]} 45. Rd3 {[%clk 0:00:08]}  Bxd2 {[%clk 0:00:14]} 46. Rxd2 {[%clk 0:00:08]}  Rg8 {[%clk 0:00:14]} 47. Rc2+ {[%clk 0:00:06]}  Kb4 {[%clk 0:00:14]} 48. Rc7 {[%clk 0:00:06]}  d4 {[%clk 0:00:14]} 49. Rd7 {[%clk 0:00:06]}  Kc3 {[%clk 0:00:15]} 50. Rc7+ {[%clk 0:00:06]}  Kd2 {[%clk 0:00:15]} 51. h4 {[%clk 0:00:05]}  gxh4+ {[%clk 0:00:16]} 52. Kxh4 {[%clk 0:00:06]}  Ke2 {[%clk 0:00:13]} 53. Rd7 {[%clk 0:00:05]}  Kxf2 {[%clk 0:00:14]} 54. Rxd4 {[%clk 0:00:05]}  Kxf3 {[%clk 0:00:15]} 55. Rd3+ {[%clk 0:00:05]}  Kg2 {[%clk 0:00:14]} 56. Rd2+ {[%clk 0:00:03]}  Kf3 {[%clk 0:00:14]} 57. Rd3+ {[%clk 0:00:04]}  Ke2 {[%clk 0:00:14]} 58. Rd7 {[%clk 0:00:04]}  f3 {[%clk 0:00:14]} 59. Re7+ {[%clk 0:00:05]}  Kf1 {[%clk 0:00:15]} 60. Kh3 {[%clk 0:00:05]}  f2 {[%clk 0:00:14]} 61. Rf7 {[%clk 0:00:05]}  Rh8+ {[%clk 0:00:15]} 62. Kg3 {[%clk 0:00:05]}  Kg1 {[%clk 0:00:15]} 63. Rf3 {[%clk 0:00:01]}  Rg8+ {[%clk 0:00:15]} 64. Kh3 {[%clk 0:00:00]}  f1=Q+ {[%clk 0:00:16]} 0-1

[Event "December 19 Late 2023"]
[Site "https://www.chess.com"]
[Date "2023.12.19"]
[Round "3"]
[White "Womacka, Mathias"]
[Black "Fernandez Diaz, Cristian"]
[Result "1/2-1/2"]
[Board "101"]
[TimeControl "180+1"]
[WhiteFideId "4611390"]
[BlackFideId "22256687"]
[WhiteElo "2376"]
[BlackElo "2170"]
[WhiteTeam "GER"]
[BlackTeam "ESP"]
[WhiteClock "0:00:40"]
[BlackClock "0:01:05"]

1. e4 {[%clk 0:03:00]}  c5 {[%clk 0:03:00]} 2. Nf3 {[%clk 0:02:58]}  Nc6 {[%clk 0:03:00]} 3. d4 {[%clk 0:02:58]}  cxd4 {[%clk 0:02:59]} 4. Nxd4 {[%clk 0:02:59]}  Nf6 {[%clk 0:02:56]} 5. Nc3 {[%clk 0:02:59]}  e5 {[%clk 0:02:56]} 6. Ndb5 {[%clk 0:02:59]}  d6 {[%clk 0:02:57]} 7. Bg5 {[%clk 0:02:58]}  a6 {[%clk 0:02:56]} 8. Na3 {[%clk 0:02:58]}  b5 {[%clk 0:02:57]} 9. Nd5 {[%clk 0:02:58]}  Be7 {[%clk 0:02:57]} 10. Nxe7 {[%clk 0:02:56]}  Qxe7 {[%clk 0:02:38]} 11. c4 {[%clk 0:02:55]}  b4 {[%clk 0:02:33]} 12. Nc2 {[%clk 0:02:56]}  h6 {[%clk 0:02:21]} 13. Bxf6 {[%clk 0:02:53]}  Qxf6 {[%clk 0:02:22]} 14. Nxb4 {[%clk 0:02:52]}  Nxb4 {[%clk 0:02:14]} 15. Qa4+ {[%clk 0:02:52]}  Bd7 {[%clk 0:02:15]} 16. Qxb4 {[%clk 0:02:50]}  O-O {[%clk 0:02:14]} 17. Qd2 {[%clk 0:02:40]}  Qg6 {[%clk 0:02:11]} 18. f3 {[%clk 0:02:39]}  Be6 {[%clk 0:01:56]} 19. Bd3 {[%clk 0:02:38]}  a5 {[%clk 0:01:52]} 20. O-O {[%clk 0:02:35]}  Rfc8 {[%clk 0:01:49]} 21. b3 {[%clk 0:02:31]}  a4 {[%clk 0:01:47]} 22. Rfd1 {[%clk 0:02:23]}  Qf6 {[%clk 0:01:41]} 23. Bf1 {[%clk 0:02:18]}  Qd8 {[%clk 0:01:35]} 24. Kh1 {[%clk 0:01:56]}  Qb6 {[%clk 0:01:28]} 25. Rab1 {[%clk 0:01:34]}  Rab8 {[%clk 0:01:27]} 26. Qxd6 {[%clk 0:01:29]}  Qxd6 {[%clk 0:01:24]} 27. Rxd6 {[%clk 0:01:29]}  Bxc4 {[%clk 0:01:24]} 28. Bxc4 {[%clk 0:01:08]}  Rxc4 {[%clk 0:01:25]} 29. h4 {[%clk 0:00:59]}  Rc2 {[%clk 0:01:23]} 30. b4 {[%clk 0:00:45]}  Rxa2 {[%clk 0:01:20]} 31. b5 {[%clk 0:00:44]}  a3 {[%clk 0:01:19]} 32. Ra6 {[%clk 0:00:43]}  Rb2 {[%clk 0:01:15]} 33. Ra1 {[%clk 0:00:41]}  R8xb5 {[%clk 0:01:05]} 34. R6xa3 {[%clk 0:00:40]} 1/2-1/2

[Event "December 19 Late 2023"]
[Site "https://www.chess.com"]
[Date "2023.12.19"]
[Round "3"]
[White "Smith, Garrett L"]
[Black "Khater, Sherif"]
[Result "1-0"]
[Board "103"]
[TimeControl "180+1"]
[WhiteFideId "2024829"]
[BlackFideId "2034280"]
[WhiteElo "2367"]
[BlackElo "2551"]
[WhiteTeam "USA"]
[BlackTeam "USA"]
[WhiteClock "0:00:40"]
[BlackClock "0:00:37"]

1. e4 {[%clk 0:03:00]}  a6 {[%clk 0:03:00]} 2. d4 {[%clk 0:03:00]}  b5 {[%clk 0:02:59]} 3. Bd3 {[%clk 0:02:59]}  Bb7 {[%clk 0:02:59]} 4. a4 {[%clk 0:02:58]}  b4 {[%clk 0:02:55]} 5. c3 {[%clk 0:02:54]}  e6 {[%clk 0:02:53]} 6. Nf3 {[%clk 0:02:48]}  c5 {[%clk 0:02:47]} 7. O-O {[%clk 0:02:47]}  h6 {[%clk 0:02:45]} 8. Re1 {[%clk 0:02:43]}  a5 {[%clk 0:02:43]} 9. Nbd2 {[%clk 0:02:36]}  Nf6 {[%clk 0:02:41]} 10. e5 {[%clk 0:02:31]}  Nd5 {[%clk 0:02:41]} 11. Ne4 {[%clk 0:02:32]}  cxd4 {[%clk 0:02:37]} 12. Nxd4 {[%clk 0:02:27]}  Be7 {[%clk 0:02:16]} 13. Nb5 {[%clk 0:02:19]}  O-O {[%clk 0:02:16]} 14. Nbd6 {[%clk 0:02:13]}  Ba6 {[%clk 0:02:16]} 15. c4 {[%clk 0:02:09]}  Nc7 {[%clk 0:02:04]} 16. Bxh6 {[%clk 0:01:40]}  gxh6 {[%clk 0:01:59]} 17. Re3 {[%clk 0:01:34]}  f5 {[%clk 0:01:36]} 18. Rg3+ {[%clk 0:01:08]}  Bg5 {[%clk 0:01:27]} 19. Qh5 {[%clk 0:00:47]}  fxe4 {[%clk 0:00:37]} 20. Qxh6 {[%clk 0:00:40]} 1-0

[Event "December 19 Late 2023"]
[Site "https://www.chess.com"]
[Date "2023.12.19"]
[Round "3"]
[White "Diaz, Fernando"]
[Black "Riff, Vincent"]
[Result "1/2-1/2"]
[Board "104"]
[TimeControl "180+1"]
[WhiteFideId "3701255"]
[BlackFideId "617776"]
[WhiteElo "2020"]
[BlackElo "2358"]
[WhiteTeam "PAR"]
[BlackTeam "FRA"]
[WhiteClock "0:00:06"]
[BlackClock "0:00:18"]

1. e4 {[%clk 0:03:00]}  c5 {[%clk 0:02:48]} 2. d4 {[%clk 0:03:00]}  cxd4 {[%clk 0:02:47]} 3. c3 {[%clk 0:03:00]}  d3 {[%clk 0:02:39]} 4. c4 {[%clk 0:03:00]}  Nc6 {[%clk 0:02:40]} 5. Bxd3 {[%clk 0:03:01]}  e5 {[%clk 0:02:39]} 6. Nf3 {[%clk 0:03:01]}  Nf6 {[%clk 0:02:39]} 7. Nc3 {[%clk 0:03:02]}  Bc5 {[%clk 0:02:39]} 8. Bg5 {[%clk 0:03:02]}  d6 {[%clk 0:02:39]} 9. Nd5 {[%clk 0:03:02]}  Bg4 {[%clk 0:02:30]} 10. h3 {[%clk 0:03:00]}  Bh5 {[%clk 0:02:30]} 11. O-O {[%clk 0:02:41]}  h6 {[%clk 0:02:29]} 12. Bxf6 {[%clk 0:02:23]}  gxf6 {[%clk 0:02:29]} 13. b4 {[%clk 0:02:23]}  Bd4 {[%clk 0:02:26]} 14. b5 {[%clk 0:02:19]}  Nb8 {[%clk 0:02:23]} 15. Rb1 {[%clk 0:02:16]}  Nd7 {[%clk 0:02:17]} 16. Be2 {[%clk 0:02:09]}  Bc5 {[%clk 0:02:10]} 17. Nh4 {[%clk 0:02:06]}  Bg6 {[%clk 0:02:08]} 18. Bg4 {[%clk 0:01:59]}  Nb6 {[%clk 0:02:05]} 19. Bf5 {[%clk 0:01:54]}  Rg8 {[%clk 0:02:02]} 20. Rc1 {[%clk 0:01:39]}  Bd4 {[%clk 0:01:36]} 21. Qg4 {[%clk 0:01:32]}  Nxd5 {[%clk 0:01:29]} 22. cxd5 {[%clk 0:01:25]}  Bh7 {[%clk 0:01:18]} 23. Qh5 {[%clk 0:01:12]}  Bxf5 {[%clk 0:00:55]} 24. Nxf5 {[%clk 0:01:13]}  Qd7 {[%clk 0:00:55]} 25. a4 {[%clk 0:00:58]}  Bc5 {[%clk 0:00:55]} 26. Qxh6 {[%clk 0:00:49]}  O-O-O {[%clk 0:00:55]} 27. Qxf6 {[%clk 0:00:49]}  Kb8 {[%clk 0:00:53]} 28. Qe7 {[%clk 0:00:29]}  Qxe7 {[%clk 0:00:38]} 29. Nxe7 {[%clk 0:00:30]}  Rh8 {[%clk 0:00:39]} 30. Nf5 {[%clk 0:00:27]}  Rdg8 {[%clk 0:00:38]} 31. Rc3 {[%clk 0:00:23]}  b6 {[%clk 0:00:36]} 32. Rg3 {[%clk 0:00:21]}  Rxg3 {[%clk 0:00:36]} 33. Nxg3 {[%clk 0:00:21]}  Rh4 {[%clk 0:00:36]} 34. Kh2 {[%clk 0:00:20]}  Rf4 {[%clk 0:00:36]} 35. f3 {[%clk 0:00:20]}  Rh4 {[%clk 0:00:35]} 36. Nf5 {[%clk 0:00:20]}  Rh8 {[%clk 0:00:36]} 37. f4 {[%clk 0:00:19]}  exf4 {[%clk 0:00:35]} 38. Rxf4 {[%clk 0:00:20]}  Ba3 {[%clk 0:00:35]} 39. Rh4 {[%clk 0:00:19]}  Re8 {[%clk 0:00:34]} 40. g4 {[%clk 0:00:16]}  Bb2 {[%clk 0:00:34]} 41. g5 {[%clk 0:00:16]}  Bc1 {[%clk 0:00:34]} 42. Rg4 {[%clk 0:00:14]}  Bb2 {[%clk 0:00:33]} 43. Nxd6 {[%clk 0:00:13]}  Be5+ {[%clk 0:00:33]} 44. Kg2 {[%clk 0:00:13]}  Bxd6 {[%clk 0:00:33]} 45. Kf3 {[%clk 0:00:13]}  Be5 {[%clk 0:00:32]} 46. h4 {[%clk 0:00:14]}  Kc7 {[%clk 0:00:32]} 47. h5 {[%clk 0:00:14]}  Kd6 {[%clk 0:00:33]} 48. g6 {[%clk 0:00:12]}  fxg6 {[%clk 0:00:32]} 49. Rxg6+ {[%clk 0:00:13]}  Kc5 {[%clk 0:00:32]} 50. Kg4 {[%clk 0:00:11]}  Kd4 {[%clk 0:00:32]} 51. Kf5 {[%clk 0:00:12]}  Rf8+ {[%clk 0:00:32]} 52. Ke6 {[%clk 0:00:09]}  Kxe4 {[%clk 0:00:32]} 53. d6 {[%clk 0:00:09]}  Re8+ {[%clk 0:00:29]} 54. Kd7 {[%clk 0:00:08]}  Rh8 {[%clk 0:00:29]} 55. h6 {[%clk 0:00:08]}  Bf4 {[%clk 0:00:24]} 56. Kc7 {[%clk 0:00:07]}  Rh7+ {[%clk 0:00:23]} 57. Kc6 {[%clk 0:00:05]}  Rxh6 {[%clk 0:00:15]} 58. Rxh6 {[%clk 0:00:05]}  Bxh6 {[%clk 0:00:16]} 59. Kb7 {[%clk 0:00:04]}  Kd5 {[%clk 0:00:16]} 60. Kxa7 {[%clk 0:00:03]}  Kxd6 {[%clk 0:00:16]} 61. Kxb6 {[%clk 0:00:03]}  Be3+ {[%clk 0:00:17]} 62. Kb7 {[%clk 0:00:04]}  Kc5 {[%clk 0:00:17]} 63. a5 {[%clk 0:00:05]}  Kxb5 {[%clk 0:00:17]} 64. a6 {[%clk 0:00:05]}  Bb6 {[%clk 0:00:18]} 65. a7 {[%clk 0:00:06]}  Bxa7 {[%clk 0:00:18]} 1/2-1/2

[Event "December 19 Late 2023"]
[Site "https://www.chess.com"]
[Date "2023.12.19"]
[Round "3"]
[White "Soderstrom, Adrian"]
[Black "Korol, Dimitry"]
[Result "0-1"]
[Board "105"]
[TimeControl "180+1"]
[WhiteFideId "1745786"]
[BlackFideId "14108003"]
[WhiteElo "2154"]
[BlackElo "2262"]
[WhiteTeam "SWE"]
[BlackTeam "UKR"]
[WhiteClock "0:00:21"]
[BlackClock "0:00:14"]

1. e4 {[%clk 0:03:00]}  c5 {[%clk 0:03:00]} 2. Nf3 {[%clk 0:03:00]}  d6 {[%clk 0:03:00]} 3. d4 {[%clk 0:03:01]}  cxd4 {[%clk 0:03:01]} 4. Nxd4 {[%clk 0:03:02]}  Nf6 {[%clk 0:03:01]} 5. Nc3 {[%clk 0:03:02]}  g6 {[%clk 0:03:02]} 6. Be3 {[%clk 0:03:02]}  Bg7 {[%clk 0:03:03]} 7. f3 {[%clk 0:03:02]}  O-O {[%clk 0:03:03]} 8. Qd2 {[%clk 0:03:03]}  Nc6 {[%clk 0:03:04]} 9. O-O-O {[%clk 0:03:03]}  d5 {[%clk 0:03:04]} 10. exd5 {[%clk 0:03:03]}  Nxd5 {[%clk 0:03:05]} 11. Nxc6 {[%clk 0:03:04]}  bxc6 {[%clk 0:03:05]} 12. Bd4 {[%clk 0:03:04]}  e5 {[%clk 0:03:06]} 13. Bc5 {[%clk 0:03:04]}  Be6 {[%clk 0:03:06]} 14. Ne4 {[%clk 0:03:04]}  Rb8 {[%clk 0:03:06]} 15. Bc4 {[%clk 0:02:05]}  Qc7 {[%clk 0:03:06]} 16. Bb3 {[%clk 0:01:45]}  Rfd8 {[%clk 0:03:04]} 17. Kb1 {[%clk 0:01:38]}  h6 {[%clk 0:02:16]} 18. g4 {[%clk 0:01:16]}  a5 {[%clk 0:02:11]} 19. c4 {[%clk 0:01:09]}  Nf4 {[%clk 0:01:41]} 20. Bd6 {[%clk 0:01:09]}  Qa7 {[%clk 0:01:17]} 21. Qf2 {[%clk 0:01:02]}  Qxf2 {[%clk 0:00:26]} 22. Nxf2 {[%clk 0:01:03]}  Ra8 {[%clk 0:00:27]} 23. c5 {[%clk 0:00:47]}  a4 {[%clk 0:00:22]} 24. Bxe6 {[%clk 0:00:47]}  Nxe6 {[%clk 0:00:22]} 25. Rhe1 {[%clk 0:00:44]}  Nd4 {[%clk 0:00:20]} 26. Bxe5 {[%clk 0:00:30]}  Nxf3 {[%clk 0:00:19]} 27. Bxg7 {[%clk 0:00:16]}  Nxe1 {[%clk 0:00:18]} 28. Be5 {[%clk 0:00:16]}  Rxd1+ {[%clk 0:00:15]} 29. Nxd1 {[%clk 0:00:17]}  Nd3 {[%clk 0:00:15]} 30. Bd6 {[%clk 0:00:18]}  a3 {[%clk 0:00:14]} 31. b3 {[%clk 0:00:11]}  Re8 {[%clk 0:00:14]} 32. Kc2 {[%clk 0:00:11]}  Nb4+ {[%clk 0:00:14]} 33. Kd2 {[%clk 0:00:10]}  Nxa2 {[%clk 0:00:13]} 34. Ne3 {[%clk 0:00:09]}  Nb4 {[%clk 0:00:12]} 35. Nc2 {[%clk 0:00:06]}  a2 {[%clk 0:00:11]} 36. Nxb4 {[%clk 0:00:06]}  a1=Q {[%clk 0:00:11]} 37. Nd3 {[%clk 0:00:07]}  Qd4 {[%clk 0:00:11]} 38. Bg3 {[%clk 0:00:05]}  Rd8 {[%clk 0:00:10]} 39. Bd6 {[%clk 0:00:06]}  Rxd6 {[%clk 0:00:10]} 40. cxd6 {[%clk 0:00:07]}  Qxd6 {[%clk 0:00:10]} 41. Kc3 {[%clk 0:00:08]}  Qxh2 {[%clk 0:00:10]} 42. b4 {[%clk 0:00:08]}  Qg3 {[%clk 0:00:10]} 43. Kc4 {[%clk 0:00:09]}  Qxg4+ {[%clk 0:00:10]} 44. Kc5 {[%clk 0:00:09]}  Qf3 {[%clk 0:00:10]} 45. Nb2 {[%clk 0:00:07]}  Qd5+ {[%clk 0:00:10]} 46. Kb6 {[%clk 0:00:07]}  Qb5+ {[%clk 0:00:10]} 47. Kc7 {[%clk 0:00:07]}  Qxb4 {[%clk 0:00:11]} 48. Nd3 {[%clk 0:00:08]}  Qc4 {[%clk 0:00:11]} 49. Ne5 {[%clk 0:00:08]}  Qd5 {[%clk 0:00:11]} 50. Nxc6 {[%clk 0:00:08]}  Qxc6+ {[%clk 0:00:11]} 51. Kxc6 {[%clk 0:00:08]}  h5 {[%clk 0:00:12]} 52. Kd5 {[%clk 0:00:09]}  Kg7 {[%clk 0:00:12]} 53. Ke4 {[%clk 0:00:10]}  f6 {[%clk 0:00:13]} 54. Kf3 {[%clk 0:00:11]}  g5 {[%clk 0:00:13]} 55. Kg3 {[%clk 0:00:12]}  Kg6 {[%clk 0:00:14]} 56. Kf3 {[%clk 0:00:13]}  f5 {[%clk 0:00:15]} 57. Kg3 {[%clk 0:00:14]}  f4+ {[%clk 0:00:15]} 58. Kf3 {[%clk 0:00:15]}  Kf5 {[%clk 0:00:16]} 59. Kg2 {[%clk 0:00:15]}  g4 {[%clk 0:00:17]} 60. Kf2 {[%clk 0:00:15]}  h4 {[%clk 0:00:18]} 61. Kg2 {[%clk 0:00:16]}  h3+ {[%clk 0:00:18]} 62. Kh2 {[%clk 0:00:17]}  Kg5 {[%clk 0:00:18]} 63. Kg1 {[%clk 0:00:18]}  g3 {[%clk 0:00:18]} 64. Kh1 {[%clk 0:00:18]}  f3 {[%clk 0:00:18]} 65. Kg1 {[%clk 0:00:19]}  Kf4 {[%clk 0:00:18]} 66. Kh1 {[%clk 0:00:19]}  Kg4 {[%clk 0:00:17]} 67. Kg1 {[%clk 0:00:20]}  g2 {[%clk 0:00:16]} 68. Kh2 {[%clk 0:00:20]}  Kf4 {[%clk 0:00:16]} 69. Kg1 {[%clk 0:00:21]}  Ke3 {[%clk 0:00:15]} 70. Kh2 {[%clk 0:00:21]}  Ke2 {[%clk 0:00:15]} 71. Kg3 {[%clk 0:00:21]}  g1=Q+ {[%clk 0:00:15]} 72. Kf4 {[%clk 0:00:21]}  Qg8 {[%clk 0:00:15]} 73. Ke4 {[%clk 0:00:20]}  f2 {[%clk 0:00:14]} 74. Kd4 {[%clk 0:00:19]}  f1=Q {[%clk 0:00:14]} 75. Kc5 {[%clk 0:00:20]}  Qf5+ {[%clk 0:00:14]} 76. Kd6 {[%clk 0:00:20]}  Qgg6+ {[%clk 0:00:14]} 77. Kc7 {[%clk 0:00:20]}  Qff7+ {[%clk 0:00:14]} 78. Kd8 {[%clk 0:00:21]}  Qgg8# {[%clk 0:00:14]} 0-1

[Event "December 19 Late 2023"]
[Site "https://www.chess.com"]
[Date "2023.12.19"]
[Round "3"]
[White "Lin, Bryan Enming"]
[Black "Biernacki, Mark"]
[Result "1-0"]
[Board "107"]
[TimeControl "180+1"]
[WhiteFideId "30987121"]
[BlackFideId "2082322"]
[WhiteElo "2542"]
[BlackElo "1965"]
[WhiteTeam "USA"]
[BlackTeam "USA"]
[WhiteClock "0:01:53"]
[BlackClock "0:00:00"]

1. e4 {[%clk 0:03:00]}  c6 {[%clk 0:02:59]} 2. Nf3 {[%clk 0:03:00]}  d5 {[%clk 0:03:00]} 3. exd5 {[%clk 0:03:01]}  cxd5 {[%clk 0:02:58]} 4. Ne5 {[%clk 0:03:01]}  Nc6 {[%clk 0:02:51]} 5. d4 {[%clk 0:03:01]}  e6 {[%clk 0:02:51]} 6. Nf3 {[%clk 0:02:59]}  Nf6 {[%clk 0:02:49]} 7. Bd3 {[%clk 0:02:59]}  Bd6 {[%clk 0:02:47]} 8. c3 {[%clk 0:02:59]}  O-O {[%clk 0:02:45]} 9. O-O {[%clk 0:02:59]}  e5 {[%clk 0:02:37]} 10. dxe5 {[%clk 0:02:59]}  Nxe5 {[%clk 0:02:36]} 11. Nxe5 {[%clk 0:02:59]}  Bxe5 {[%clk 0:02:37]} 12. Nd2 {[%clk 0:02:56]}  Re8 {[%clk 0:02:28]} 13. h3 {[%clk 0:02:54]}  a6 {[%clk 0:02:23]} 14. Nf3 {[%clk 0:02:53]}  Bc7 {[%clk 0:02:23]} 15. Bg5 {[%clk 0:02:52]}  Qd6 {[%clk 0:02:16]} 16. Re1 {[%clk 0:02:50]}  Bd7 {[%clk 0:02:11]} 17. Qc2 {[%clk 0:02:48]}  Bc6 {[%clk 0:01:49]} 18. Bh4 {[%clk 0:02:38]}  Ne4 {[%clk 0:01:38]} 19. Rad1 {[%clk 0:02:30]}  Qh6 {[%clk 0:01:19]} 20. c4 {[%clk 0:02:26]}  Ba5 {[%clk 0:00:42]} 21. cxd5 {[%clk 0:02:21]}  Bxe1 {[%clk 0:00:33]} 22. dxc6 {[%clk 0:02:18]}  Bxf2+ {[%clk 0:00:19]} 23. Bxf2 {[%clk 0:02:17]}  Nxf2 {[%clk 0:00:20]} 24. cxb7 {[%clk 0:02:04]}  Nxd1 {[%clk 0:00:17]} 25. bxa8=Q {[%clk 0:02:04]}  Rxa8 {[%clk 0:00:17]} 26. Qxd1 {[%clk 0:02:02]}  Qe3+ {[%clk 0:00:17]} 27. Kh1 {[%clk 0:02:02]}  g6 {[%clk 0:00:11]} 28. Bc4 {[%clk 0:02:00]}  Qc5 {[%clk 0:00:06]} 29. b3 {[%clk 0:02:00]}  Re8 {[%clk 0:00:05]} 30. Qd5 {[%clk 0:01:59]}  Qxd5 {[%clk 0:00:02]} 31. Bxd5 {[%clk 0:02:00]}  Rd8 {[%clk 0:00:03]} 32. Bc4 {[%clk 0:02:00]}  a5 {[%clk 0:00:02]} 33. a4 {[%clk 0:01:59]}  Rd1+ {[%clk 0:00:02]} 34. Kh2 {[%clk 0:01:59]}  Kg7 {[%clk 0:00:02]} 35. Ne5 {[%clk 0:01:59]}  f6 {[%clk 0:00:02]} 36. Nc6 {[%clk 0:02:00]}  f5 {[%clk 0:00:01]} 37. Nxa5 {[%clk 0:02:00]}  g5 {[%clk 0:00:01]} 38. Nc6 {[%clk 0:02:00]}  h6 {[%clk 0:00:01]} 39. a5 {[%clk 0:02:00]}  f4 {[%clk 0:00:02]} 40. a6 {[%clk 0:02:01]}  Ra1 {[%clk 0:00:02]} 41. b4 {[%clk 0:01:57]}  h5 {[%clk 0:00:01]} 42. Be2 {[%clk 0:01:54]}  Kg6 {[%clk 0:00:01]} 43. b5 {[%clk 0:01:53]}  Kf5 {[%clk 0:00:00]} 44. Bxh5 {[%clk 0:01:53]} 1-0

[Event "December 19 Late 2023"]
[Site "https://www.chess.com"]
[Date "2023.12.19"]
[Round "3"]
[White "Silva, Kaua Marques"]
[Black "Kornyukov, Alexey"]
[Result "1-0"]
[Board "110"]
[TimeControl "180+1"]
[WhiteFideId "22701168"]
[BlackFideId "4150457"]
[WhiteElo "2199"]
[BlackElo "2352"]
[WhiteTeam "BRA"]
[BlackTeam "RUS"]
[WhiteClock "0:00:28"]
[BlackClock "0:00:01"]

1. d4 {[%clk 0:02:48]}  Nf6 {[%clk 0:02:53]} 2. Nf3 {[%clk 0:02:49]}  d5 {[%clk 0:02:51]} 3. Bf4 {[%clk 0:02:39]}  c5 {[%clk 0:02:50]} 4. e3 {[%clk 0:02:40]}  Nc6 {[%clk 0:02:49]} 5. c3 {[%clk 0:02:40]}  Qb6 {[%clk 0:02:49]} 6. Qb3 {[%clk 0:02:39]}  c4 {[%clk 0:02:49]} 7. Qc2 {[%clk 0:02:39]}  Bf5 {[%clk 0:02:47]} 8. Qc1 {[%clk 0:02:39]}  h6 {[%clk 0:02:44]} 9. Be2 {[%clk 0:02:38]}  Nh5 {[%clk 0:02:43]} 10. O-O {[%clk 0:02:39]}  Nxf4 {[%clk 0:02:42]} 11. exf4 {[%clk 0:02:40]}  e6 {[%clk 0:02:39]} 12. Re1 {[%clk 0:02:40]}  Be7 {[%clk 0:02:33]} 13. Ne5 {[%clk 0:02:40]}  O-O {[%clk 0:02:30]} 14. Nd2 {[%clk 0:02:40]}  Qc7 {[%clk 0:02:19]} 15. Bd1 {[%clk 0:02:39]}  f6 {[%clk 0:02:08]} 16. Nef3 {[%clk 0:02:36]}  Qxf4 {[%clk 0:02:02]} 17. Bc2 {[%clk 0:02:28]}  Bd6 {[%clk 0:01:53]} 18. Bxf5 {[%clk 0:02:11]}  Qxf5 {[%clk 0:01:52]} 19. Nf1 {[%clk 0:02:10]}  Bf4 {[%clk 0:01:45]} 20. Qd1 {[%clk 0:02:09]}  Rad8 {[%clk 0:01:39]} 21. b3 {[%clk 0:02:00]}  cxb3 {[%clk 0:01:36]} 22. axb3 {[%clk 0:02:00]}  a6 {[%clk 0:01:31]} 23. b4 {[%clk 0:01:54]}  Rfe8 {[%clk 0:00:54]} 24. N1d2 {[%clk 0:01:50]}  e5 {[%clk 0:00:49]} 25. Nb3 {[%clk 0:01:45]}  e4 {[%clk 0:00:44]} 26. Nh4 {[%clk 0:01:45]}  Qg5 {[%clk 0:00:38]} 27. g3 {[%clk 0:01:46]}  Bd6 {[%clk 0:00:35]} 28. Nc5 {[%clk 0:01:38]}  Re7 {[%clk 0:00:27]} 29. Qb3 {[%clk 0:01:37]}  Bxc5 {[%clk 0:00:23]} 30. bxc5 {[%clk 0:01:37]}  Kh7 {[%clk 0:00:21]} 31. f4 {[%clk 0:01:35]}  exf3 {[%clk 0:00:19]} 32. Rxe7 {[%clk 0:01:34]}  Nxe7 {[%clk 0:00:18]} 33. Re1 {[%clk 0:01:33]}  Ng6 {[%clk 0:00:14]} 34. Nxf3 {[%clk 0:01:29]}  Qf5 {[%clk 0:00:15]} 35. Kg2 {[%clk 0:01:26]}  Rd7 {[%clk 0:00:14]} 36. Re3 {[%clk 0:01:24]}  h5 {[%clk 0:00:14]} 37. Qd1 {[%clk 0:01:14]}  Qg4 {[%clk 0:00:11]} 38. Qe1 {[%clk 0:01:02]}  h4 {[%clk 0:00:09]} 39. Kf2 {[%clk 0:01:00]}  h3 {[%clk 0:00:07]} 40. Re8 {[%clk 0:00:56]}  Qf5 {[%clk 0:00:06]} 41. Qe2 {[%clk 0:00:41]}  a5 {[%clk 0:00:06]} 42. Kg1 {[%clk 0:00:40]}  a4 {[%clk 0:00:06]} 43. Nd2 {[%clk 0:00:33]}  a3 {[%clk 0:00:04]} 44. Nf1 {[%clk 0:00:33]}  a2 {[%clk 0:00:03]} 45. Qxa2 {[%clk 0:00:33]}  Qd3 {[%clk 0:00:02]} 46. Qe2 {[%clk 0:00:28]}  Qxc3 {[%clk 0:00:01]} 47. Qh5# {[%clk 0:00:28]} 1-0